[Event "Titled Tuesday Blitz May 23 Late 2023"]
[White "Qiao, Cindy"]
[Black "FoxOnTheRun97"]
[WhiteFideId "2620243"]
[WhiteElo "1777"]
[BlackElo "2556"]
[Result "0-1"]
[Round "05"]
[TimeControl "180+2"]
[Date "2023.05.23"]
[WhiteClock "0:00:08"]
[BlackClock "0:00:09"]

1. d4 {[%clk 0:03:00]}  Nf6 {[%clk 0:02:59]} 2. Bf4 {[%clk 0:03:01]}  d5 {[%clk 0:02:56]} 3. e3 {[%clk 0:03:01]}  e6 {[%clk 0:02:57]} 4. Nf3 {[%clk 0:03:01]}  Bd6 {[%clk 0:02:57]} 5. Bg3 {[%clk 0:03:02]}  O-O {[%clk 0:02:56]} 6. Nbd2 {[%clk 0:03:02]}  c5 {[%clk 0:02:56]} 7. c3 {[%clk 0:03:01]}  Qc7 {[%clk 0:02:55]} 8. dxc5 {[%clk 0:02:55]}  Qxc5 {[%clk 0:02:52]} 9. c4 {[%clk 0:02:54]}  Nc6 {[%clk 0:02:35]} 10. Rc1 {[%clk 0:02:43]}  d4 {[%clk 0:02:14]} 11. e4 {[%clk 0:02:30]}  e5 {[%clk 0:01:51]} 12. a3 {[%clk 0:02:22]}  a5 {[%clk 0:01:48]} 13. Bd3 {[%clk 0:02:17]}  Bd7 {[%clk 0:01:24]} 14. Nb3 {[%clk 0:02:02]}  Qa7 {[%clk 0:01:23]} 15. c5 {[%clk 0:02:02]}  Bc7 {[%clk 0:01:20]} 16. O-O {[%clk 0:02:02]}  Bg4 {[%clk 0:01:07]} 17. Nbd2 {[%clk 0:01:55]}  Ne7 {[%clk 0:01:02]} 18. Qc2 {[%clk 0:01:46]}  Ng6 {[%clk 0:00:55]} 19. h3 {[%clk 0:01:45]}  Bd7 {[%clk 0:00:48]} 20. Nc4 {[%clk 0:01:40]}  Rfe8 {[%clk 0:00:44]} 21. Rfe1 {[%clk 0:01:36]}  Nh5 {[%clk 0:00:40]} 22. Ncd2 {[%clk 0:01:26]}  Nhf4 {[%clk 0:00:39]} 23. b4 {[%clk 0:01:16]}  axb4 {[%clk 0:00:27]} 24. axb4 {[%clk 0:01:17]}  Qa4 {[%clk 0:00:27]} 25. Rb1 {[%clk 0:01:08]}  Nxd3 {[%clk 0:00:24]} 26. Qxd3 {[%clk 0:01:08]}  Bb5 {[%clk 0:00:24]} 27. Nc4 {[%clk 0:01:06]}  Qa2 {[%clk 0:00:20]} 28. Nfd2 {[%clk 0:01:04]}  h5 {[%clk 0:00:18]} 29. Rec1 {[%clk 0:00:57]}  h4 {[%clk 0:00:17]} 30. Bh2 {[%clk 0:00:55]}  Qa6 {[%clk 0:00:10]} 31. Qf3 {[%clk 0:00:51]}  Qe6 {[%clk 0:00:09]} 32. Qd1 {[%clk 0:00:42]}  Ra2 {[%clk 0:00:09]} 33. Rb2 {[%clk 0:00:38]}  Rea8 {[%clk 0:00:10]} 34. Rcb1 {[%clk 0:00:33]}  Rxb2 {[%clk 0:00:09]} 35. Rxb2 {[%clk 0:00:34]}  Bxc4 {[%clk 0:00:04]} 36. Nxc4 {[%clk 0:00:35]}  Qxc4 {[%clk 0:00:05]} 37. Rc2 {[%clk 0:00:35]}  Qb3 {[%clk 0:00:04]} 38. Qc1 {[%clk 0:00:33]}  Ra3 {[%clk 0:00:04]} 39. g3 {[%clk 0:00:31]}  Qa4 {[%clk 0:00:03]} 40. Rb2 {[%clk 0:00:30]}  Ra1 {[%clk 0:00:04]} 41. Rb1 {[%clk 0:00:30]}  Rxb1 {[%clk 0:00:04]} 42. Qxb1 {[%clk 0:00:31]}  hxg3 {[%clk 0:00:04]} 43. Bxg3 {[%clk 0:00:32]}  Qb5 {[%clk 0:00:05]} 44. Qa1 {[%clk 0:00:29]}  Nf4 {[%clk 0:00:04]} 45. Qa8+ {[%clk 0:00:28]}  Kh7 {[%clk 0:00:04]} 46. Qc8 {[%clk 0:00:28]}  Qc6 {[%clk 0:00:04]} 47. Qg4 {[%clk 0:00:28]}  Qg6 {[%clk 0:00:04]} 48. Qh4+ {[%clk 0:00:26]}  Qh6 {[%clk 0:00:04]} 49. Qg4 {[%clk 0:00:25]}  d3 {[%clk 0:00:04]} 50. Qf5+ {[%clk 0:00:25]}  Qg6 {[%clk 0:00:04]} 51. Qd7 {[%clk 0:00:24]}  Ne2+ {[%clk 0:00:03]} 52. Kh2 {[%clk 0:00:23]}  Nxg3 {[%clk 0:00:04]} 53. fxg3 {[%clk 0:00:24]}  Qxe4 {[%clk 0:00:03]} 54. Qxf7 {[%clk 0:00:21]}  Qe2+ {[%clk 0:00:03]} 55. Kg1 {[%clk 0:00:20]}  d2 {[%clk 0:00:03]} 56. Qf5+ {[%clk 0:00:20]}  Kg8 {[%clk 0:00:02]} 57. Qe6+ {[%clk 0:00:20]}  Kf8 {[%clk 0:00:03]} 58. Qc8+ {[%clk 0:00:20]}  Kf7 {[%clk 0:00:03]} 59. Qxc7+ {[%clk 0:00:20]}  Kf6 {[%clk 0:00:03]} 60. Qd8+ {[%clk 0:00:20]}  Kf5 {[%clk 0:00:03]} 61. Qd7+ {[%clk 0:00:20]}  Ke4 {[%clk 0:00:03]} 62. Qxb7+ {[%clk 0:00:20]}  Kd4 {[%clk 0:00:04]} 63. Qd7+ {[%clk 0:00:20]}  Kc3 {[%clk 0:00:04]} 64. c6 {[%clk 0:00:10]}  Qe1+ {[%clk 0:00:05]} 65. Kg2 {[%clk 0:00:10]}  Qe2+ {[%clk 0:00:06]} 66. Kg1 {[%clk 0:00:10]}  d1=Q+ {[%clk 0:00:06]} 67. Qxd1 {[%clk 0:00:10]}  Qxd1+ {[%clk 0:00:07]} 68. Kf2 {[%clk 0:00:11]}  Qd6 {[%clk 0:00:08]} 69. b5 {[%clk 0:00:10]}  Kc4 {[%clk 0:00:08]} 70. h4 {[%clk 0:00:10]}  Kxb5 {[%clk 0:00:08]} 71. c7 {[%clk 0:00:10]}  Qxc7 {[%clk 0:00:08]} 72. g4 {[%clk 0:00:11]}  Qf7+ {[%clk 0:00:08]} 73. Ke3 {[%clk 0:00:11]}  Qf4+ {[%clk 0:00:08]} 74. Kd3 {[%clk 0:00:09]}  Qxg4 {[%clk 0:00:09]} 75. h5 {[%clk 0:00:09]}  Qxh5 {[%clk 0:00:09]} 76. Ke4 {[%clk 0:00:08]}  Kc6 {[%clk 0:00:09]} 0-1


[Site "https://www.chess.com"]

[Event "Titled Tuesday Blitz May 23 Late 2023"]
[White "Erzhanov, Arman"]
[Black "Gerbelli Neto, Eduardo"]
[WhiteFideId "4138821"]
[BlackFideId "2103281"]
[WhiteElo "2138"]
[BlackElo "2178"]
[Result "1-0"]
[Round "05"]
[TimeControl "180+2"]
[Date "2023.05.23"]
[WhiteClock "0:00:47"]
[BlackClock "0:00:01"]

1. e4 {[%clk 0:02:58]}  e5 {[%clk 0:02:59]} 2. Nf3 {[%clk 0:02:57]}  Nc6 {[%clk 0:02:58]} 3. Bb5 {[%clk 0:02:57]}  a6 {[%clk 0:02:58]} 4. Bxc6 {[%clk 0:02:58]}  dxc6 {[%clk 0:02:58]} 5. O-O {[%clk 0:02:59]}  Bg4 {[%clk 0:02:57]} 6. h3 {[%clk 0:02:58]}  h5 {[%clk 0:02:58]} 7. d3 {[%clk 0:02:58]}  Qf6 {[%clk 0:02:57]} 8. Be3 {[%clk 0:02:59]}  Bxf3 {[%clk 0:02:54]} 9. Qxf3 {[%clk 0:03:00]}  Qxf3 {[%clk 0:02:54]} 10. gxf3 {[%clk 0:03:00]}  Bd6 {[%clk 0:02:49]} 11. Nd2 {[%clk 0:03:00]}  Ne7 {[%clk 0:02:49]} 12. Rfb1 {[%clk 0:03:00]}  a5 {[%clk 0:02:47]} 13. Nc4 {[%clk 0:02:59]}  f6 {[%clk 0:02:25]} 14. Nxd6+ {[%clk 0:02:58]}  cxd6 {[%clk 0:02:25]} 15. f4 {[%clk 0:02:58]}  Ng6 {[%clk 0:02:18]} 16. f5 {[%clk 0:02:55]}  Ne7 {[%clk 0:02:16]} 17. f4 {[%clk 0:02:41]}  g6 {[%clk 0:02:10]} 18. fxe5 {[%clk 0:02:24]}  fxe5 {[%clk 0:01:48]} 19. fxg6 {[%clk 0:02:15]}  Rg8 {[%clk 0:01:41]} 20. Kh2 {[%clk 0:02:14]}  Rxg6 {[%clk 0:01:40]} 21. Rg1 {[%clk 0:02:15]}  Kf7 {[%clk 0:01:30]} 22. Raf1+ {[%clk 0:02:14]}  Ke6 {[%clk 0:01:23]} 23. Rg5 {[%clk 0:02:02]}  Rag8 {[%clk 0:01:16]} 24. h4 {[%clk 0:02:02]}  a4 {[%clk 0:01:04]} 25. Rf2 {[%clk 0:01:56]}  Rxg5 {[%clk 0:01:02]} 26. hxg5 {[%clk 0:01:35]}  Ng6 {[%clk 0:00:35]} 27. Rf6+ {[%clk 0:01:34]}  Ke7 {[%clk 0:00:36]} 28. Kg3 {[%clk 0:01:35]}  b5 {[%clk 0:00:24]} 29. a3 {[%clk 0:01:34]}  Rg7 {[%clk 0:00:14]} 30. c3 {[%clk 0:01:34]}  Rg8 {[%clk 0:00:13]} 31. d4 {[%clk 0:01:35]}  Rg7 {[%clk 0:00:12]} 32. dxe5 {[%clk 0:01:33]}  Nxe5 {[%clk 0:00:11]} 33. Rh6 {[%clk 0:01:31]}  Nd3 {[%clk 0:00:11]} 34. Rxh5 {[%clk 0:01:29]}  Nxb2 {[%clk 0:00:11]} 35. Bd4 {[%clk 0:01:28]}  Rg6 {[%clk 0:00:09]} 36. Kf4 {[%clk 0:01:27]}  Nc4 {[%clk 0:00:09]} 37. Kf5 {[%clk 0:01:27]}  Rg8 {[%clk 0:00:08]} 38. Rh7+ {[%clk 0:01:27]}  Kd8 {[%clk 0:00:08]} 39. g6 {[%clk 0:01:24]}  Nxa3 {[%clk 0:00:07]} 40. Ra7 {[%clk 0:01:21]}  Rf8+ {[%clk 0:00:06]} 41. Ke6 {[%clk 0:01:21]}  Re8+ {[%clk 0:00:05]} 42. Kxd6 {[%clk 0:01:21]}  Nc4+ {[%clk 0:00:06]} 43. Kxc6 {[%clk 0:01:18]}  Re6+ {[%clk 0:00:06]} 44. Kxb5 {[%clk 0:01:18]}  Nd6+ {[%clk 0:00:06]} 45. Kxa4 {[%clk 0:01:16]}  Rxg6 {[%clk 0:00:06]} 46. e5 {[%clk 0:01:16]}  Nc8 {[%clk 0:00:05]} 47. Rh7 {[%clk 0:01:13]}  Ra6+ {[%clk 0:00:02]} 48. Kb5 {[%clk 0:01:13]}  Rg6 {[%clk 0:00:01]} 49. Kc5 {[%clk 0:01:09]}  Ne7 {[%clk 0:00:02]} 50. Rf7 {[%clk 0:00:54]}  Kd7 {[%clk 0:00:02]} 51. Rf6 {[%clk 0:00:54]}  Rg8 {[%clk 0:00:02]} 52. Rf7 {[%clk 0:00:50]}  Rc8+ {[%clk 0:00:02]} 53. Kb4 {[%clk 0:00:50]}  Rc6 {[%clk 0:00:03]} 54. Bc5 {[%clk 0:00:46]}  Re6 {[%clk 0:00:02]} 55. Rxe7+ {[%clk 0:00:46]}  Rxe7 {[%clk 0:00:03]} 56. Bxe7 {[%clk 0:00:47]}  Kxe7 {[%clk 0:00:01]} 57. Kc5 {[%clk 0:00:47]} 1-0


[Site "https://www.chess.com"]

[Event "Titled Tuesday Blitz May 23 Late 2023"]
[White "FuenfgegenWilly"]
[Black "Bartel, Michal"]
[BlackFideId "1119257"]
[WhiteElo "2371"]
[BlackElo "2282"]
[Result "0-1"]
[Round "05"]
[TimeControl "180+2"]
[Date "2023.05.23"]
[WhiteClock "0:00:38"]
[BlackClock "0:01:11"]

1. e4 {[%clk 0:03:00]}  e5 {[%clk 0:02:58]} 2. Nc3 {[%clk 0:02:59]}  Nf6 {[%clk 0:02:58]} 3. g3 {[%clk 0:02:59]}  d5 {[%clk 0:02:58]} 4. exd5 {[%clk 0:02:58]}  Nxd5 {[%clk 0:02:59]} 5. Bg2 {[%clk 0:02:59]}  c6 {[%clk 0:03:00]} 6. Nf3 {[%clk 0:02:55]}  Nxc3 {[%clk 0:02:59]} 7. bxc3 {[%clk 0:02:54]}  Bd6 {[%clk 0:02:59]} 8. d3 {[%clk 0:02:52]}  O-O {[%clk 0:02:59]} 9. O-O {[%clk 0:02:51]}  Re8 {[%clk 0:02:58]} 10. Nd2 {[%clk 0:02:46]}  Nd7 {[%clk 0:02:58]} 11. c4 {[%clk 0:02:45]}  Nf6 {[%clk 0:02:53]} 12. h3 {[%clk 0:02:42]}  Bf5 {[%clk 0:02:50]} 13. Bb2 {[%clk 0:02:39]}  Qd7 {[%clk 0:02:50]} 14. Kh2 {[%clk 0:02:39]}  Rad8 {[%clk 0:02:49]} 15. Qe2 {[%clk 0:02:32]}  Bc7 {[%clk 0:02:43]} 16. Rae1 {[%clk 0:02:31]}  Bg6 {[%clk 0:02:39]} 17. Qf3 {[%clk 0:02:25]}  Ba5 {[%clk 0:02:36]} 18. Re2 {[%clk 0:02:14]}  Qd6 {[%clk 0:02:24]} 19. Nb3 {[%clk 0:02:05]}  Bc7 {[%clk 0:02:20]} 20. Rfe1 {[%clk 0:02:04]}  Bh5 {[%clk 0:02:20]} 21. g4 {[%clk 0:02:04]}  e4+ {[%clk 0:02:18]} 22. Qg3 {[%clk 0:02:04]}  Qd7 {[%clk 0:02:16]} 23. gxh5 {[%clk 0:01:58]}  Bxg3+ {[%clk 0:02:15]} 24. fxg3 {[%clk 0:01:58]}  exd3 {[%clk 0:02:13]} 25. Rxe8+ {[%clk 0:01:55]}  Rxe8 {[%clk 0:02:13]} 26. Rxe8+ {[%clk 0:01:55]}  Nxe8 {[%clk 0:02:11]} 27. cxd3 {[%clk 0:01:53]}  Qxd3 {[%clk 0:02:09]} 28. Bd4 {[%clk 0:01:48]}  Qxc4 {[%clk 0:02:04]} 29. Bxa7 {[%clk 0:01:48]}  Qa4 {[%clk 0:02:02]} 30. Bg1 {[%clk 0:01:42]}  Qxa2 {[%clk 0:02:02]} 31. Nc5 {[%clk 0:01:42]}  Nd6 {[%clk 0:01:59]} 32. h4 {[%clk 0:01:37]}  Qb2 {[%clk 0:01:53]} 33. Be3 {[%clk 0:01:32]}  Nf5 {[%clk 0:01:50]} 34. Bf4 {[%clk 0:01:29]}  Nd4 {[%clk 0:01:43]} 35. Kh3 {[%clk 0:01:25]}  b6 {[%clk 0:01:39]} 36. Nd3 {[%clk 0:01:20]}  Qc3 {[%clk 0:01:35]} 37. Ne5 {[%clk 0:01:19]}  Ne2 {[%clk 0:01:32]} 38. Kg4 {[%clk 0:01:14]}  Nxf4 {[%clk 0:01:31]} 39. gxf4 {[%clk 0:01:15]}  c5 {[%clk 0:01:30]} 40. Bd5 {[%clk 0:01:11]}  b5 {[%clk 0:01:22]} 41. h6 {[%clk 0:01:09]}  gxh6 {[%clk 0:01:20]} 42. Kf5 {[%clk 0:00:55]}  Kg7 {[%clk 0:01:18]} 43. Bxf7 {[%clk 0:00:52]}  b4 {[%clk 0:01:13]} 44. Be6 {[%clk 0:00:38]}  b3 {[%clk 0:01:11]} 0-1


[Site "https://www.chess.com"]

[Event "Titled Tuesday Blitz May 23 Late 2023"]
[White "ThaBarWa"]
[Black "Chos, Alexey"]
[BlackFideId "14117762"]
[WhiteElo "2323"]
[BlackElo "2234"]
[Result "0-1"]
[Round "05"]
[TimeControl "180+2"]
[Date "2023.05.23"]
[WhiteClock "0:01:16"]
[BlackClock "0:01:58"]

1. d4 {[%clk 0:03:00]}  e6 {[%clk 0:03:00]} 2. c4 {[%clk 0:03:01]}  c5 {[%clk 0:02:59]} 3. d5 {[%clk 0:03:01]}  exd5 {[%clk 0:03:00]} 4. cxd5 {[%clk 0:03:02]}  d6 {[%clk 0:03:01]} 5. Nc3 {[%clk 0:03:02]}  Nf6 {[%clk 0:03:02]} 6. Nf3 {[%clk 0:03:03]}  g6 {[%clk 0:03:02]} 7. Bf4 {[%clk 0:03:03]}  Bg7 {[%clk 0:03:03]} 8. Qa4+ {[%clk 0:03:02]}  Bd7 {[%clk 0:02:58]} 9. Qb3 {[%clk 0:03:03]}  Qc7 {[%clk 0:02:55]} 10. e4 {[%clk 0:03:03]}  O-O {[%clk 0:02:55]} 11. Nd2 {[%clk 0:03:03]}  Re8 {[%clk 0:02:51]} 12. Be2 {[%clk 0:03:02]}  Ng4 {[%clk 0:02:41]} 13. O-O {[%clk 0:02:49]}  Ne5 {[%clk 0:02:40]} 14. h3 {[%clk 0:02:45]}  Na6 {[%clk 0:02:37]} 15. Bh2 {[%clk 0:02:39]}  Rac8 {[%clk 0:02:35]} 16. f4 {[%clk 0:02:35]}  c4 {[%clk 0:02:34]} 17. Qd1 {[%clk 0:02:19]}  Qb6+ {[%clk 0:02:30]} 18. Kh1 {[%clk 0:02:18]}  Qxb2 {[%clk 0:02:29]} 19. fxe5 {[%clk 0:02:10]}  Qxc3 {[%clk 0:02:28]} 20. Rc1 {[%clk 0:02:10]}  Qd4 {[%clk 0:02:25]} 21. exd6 {[%clk 0:01:52]}  c3 {[%clk 0:02:21]} 22. Nf3 {[%clk 0:01:51]}  Qxe4 {[%clk 0:02:21]} 23. Bxa6 {[%clk 0:01:48]}  bxa6 {[%clk 0:02:17]} 24. Ng5 {[%clk 0:01:48]}  Qe2 {[%clk 0:02:16]} 25. Rxf7 {[%clk 0:01:33]}  Qxd1+ {[%clk 0:02:15]} 26. Rxd1 {[%clk 0:01:33]}  c2 {[%clk 0:02:15]} 27. Rc1 {[%clk 0:01:34]}  Bb2 {[%clk 0:02:12]} 28. Rxc2 {[%clk 0:01:29]}  Re1+ {[%clk 0:02:10]} 29. Bg1 {[%clk 0:01:28]}  Rxc2 {[%clk 0:02:08]} 30. Rxd7 {[%clk 0:01:28]}  Rcc1 {[%clk 0:01:57]} 31. Rd8+ {[%clk 0:01:28]}  Kg7 {[%clk 0:01:57]} 32. Ne6+ {[%clk 0:01:29]}  Kh6 {[%clk 0:01:57]} 33. d7 {[%clk 0:01:15]}  Rxg1+ {[%clk 0:01:57]} 34. Kh2 {[%clk 0:01:16]}  Be5+ {[%clk 0:01:58]} 35. g3 {[%clk 0:01:16]}  Bxg3# {[%clk 0:01:58]} 0-1


[Site "https://www.chess.com"]

[Event "Titled Tuesday Blitz May 23 Late 2023"]
[White "Martic, Ivan"]
[Black "Djabri,Massinas"]
[WhiteFideId "929301"]
[BlackFideId "7905726"]
[WhiteElo "2360"]
[BlackElo "2194"]
[Result "0-1"]
[Round "05"]
[TimeControl "180+2"]
[Date "2023.05.23"]
[WhiteClock "0:00:26"]
[BlackClock "0:00:08"]

1. e4 {[%clk 0:02:55]}  c5 {[%clk 0:02:59]} 2. Nf3 {[%clk 0:02:54]}  d6 {[%clk 0:02:59]} 3. d4 {[%clk 0:02:54]}  cxd4 {[%clk 0:03:00]} 4. Nxd4 {[%clk 0:02:54]}  Nf6 {[%clk 0:03:01]} 5. Nc3 {[%clk 0:02:55]}  a6 {[%clk 0:03:01]} 6. g3 {[%clk 0:02:55]}  e5 {[%clk 0:03:01]} 7. Nde2 {[%clk 0:02:54]}  Be7 {[%clk 0:02:58]} 8. Bg2 {[%clk 0:02:55]}  b5 {[%clk 0:02:58]} 9. a4 {[%clk 0:02:51]}  b4 {[%clk 0:02:57]} 10. Nd5 {[%clk 0:02:51]}  Nxd5 {[%clk 0:02:58]} 11. Qxd5 {[%clk 0:02:48]}  Ra7 {[%clk 0:02:58]} 12. Be3 {[%clk 0:02:46]}  Be6 {[%clk 0:02:58]} 13. Qd2 {[%clk 0:02:38]}  Rb7 {[%clk 0:02:59]} 14. a5 {[%clk 0:02:32]}  b3 {[%clk 0:02:49]} 15. O-O {[%clk 0:02:20]}  O-O {[%clk 0:02:41]} 16. Nc3 {[%clk 0:02:13]}  bxc2 {[%clk 0:02:26]} 17. Qxc2 {[%clk 0:02:14]}  Nc6 {[%clk 0:02:25]} 18. Bb6 {[%clk 0:02:08]}  Rxb6 {[%clk 0:01:37]} 19. axb6 {[%clk 0:02:09]}  Qxb6 {[%clk 0:01:37]} 20. Nd5 {[%clk 0:02:05]}  Bxd5 {[%clk 0:01:36]} 21. exd5 {[%clk 0:02:05]}  Nd4 {[%clk 0:01:35]} 22. Qc4 {[%clk 0:02:02]}  a5 {[%clk 0:01:23]} 23. Ra2 {[%clk 0:01:59]}  Rb8 {[%clk 0:01:20]} 24. Rfa1 {[%clk 0:01:57]}  g6 {[%clk 0:01:13]} 25. Rxa5 {[%clk 0:01:54]}  Qxb2 {[%clk 0:01:07]} 26. Ra8 {[%clk 0:01:49]}  Rxa8 {[%clk 0:00:38]} 27. Rxa8+ {[%clk 0:01:50]}  Kg7 {[%clk 0:00:38]} 28. Ra7 {[%clk 0:01:49]}  Bd8 {[%clk 0:00:32]} 29. Ra2 {[%clk 0:01:09]}  Qb1+ {[%clk 0:00:27]} 30. Bf1 {[%clk 0:01:09]}  Bb6 {[%clk 0:00:20]} 31. Kg2 {[%clk 0:01:04]}  Bc5 {[%clk 0:00:17]} 32. h4 {[%clk 0:00:56]}  Qd1 {[%clk 0:00:17]} 33. Qd3 {[%clk 0:00:52]}  Qg4 {[%clk 0:00:12]} 34. Ra8 {[%clk 0:00:46]}  e4 {[%clk 0:00:07]} 35. Qe3 {[%clk 0:00:43]}  Nf5 {[%clk 0:00:05]} 36. Qf4 {[%clk 0:00:43]}  Nxh4+ {[%clk 0:00:05]} 37. Kh1 {[%clk 0:00:40]}  Qxf4 {[%clk 0:00:02]} 38. gxf4 {[%clk 0:00:41]}  Bxf2 {[%clk 0:00:03]} 39. Rd8 {[%clk 0:00:37]}  Bc5 {[%clk 0:00:03]} 40. Re8 {[%clk 0:00:35]}  e3 {[%clk 0:00:03]} 41. Be2 {[%clk 0:00:34]}  h6 {[%clk 0:00:03]} 42. Re7 {[%clk 0:00:30]}  g5 {[%clk 0:00:03]} 43. fxg5 {[%clk 0:00:29]}  hxg5 {[%clk 0:00:04]} 44. Bh5 {[%clk 0:00:29]}  Ng6 {[%clk 0:00:05]} 45. Kg1 {[%clk 0:00:29]}  Nxe7 {[%clk 0:00:05]} 46. Kf1 {[%clk 0:00:29]}  Nxd5 {[%clk 0:00:05]} 47. Ke2 {[%clk 0:00:29]}  Nf4+ {[%clk 0:00:05]} 48. Kf3 {[%clk 0:00:29]}  e2 {[%clk 0:00:06]} 49. Bg4 {[%clk 0:00:27]}  e1=Q {[%clk 0:00:07]} 50. Bf5 {[%clk 0:00:26]}  Qf2+ {[%clk 0:00:08]} 51. Kg4 {[%clk 0:00:26]}  Qg2# {[%clk 0:00:08]} 0-1


[Site "https://www.chess.com"]

[Event "Titled Tuesday Blitz May 23 Late 2023"]
[White "Ladan, Nicholas"]
[Black "Chyngyz, Sultai"]
[WhiteFideId "30918855"]
[BlackFideId "13803158"]
[WhiteElo "2167"]
[BlackElo "1408"]
[Result "1/2-1/2"]
[Round "05"]
[TimeControl "180+2"]
[Date "2023.05.23"]
[WhiteClock "0:00:06"]
[BlackClock "0:00:17"]

1. d4 {[%clk 0:03:00]}  Nf6 {[%clk 0:02:57]} 2. c3 {[%clk 0:03:00]}  g6 {[%clk 0:02:51]} 3. Bg5 {[%clk 0:03:00]}  Bg7 {[%clk 0:02:50]} 4. e3 {[%clk 0:03:00]}  O-O {[%clk 0:02:50]} 5. Nd2 {[%clk 0:03:01]}  d6 {[%clk 0:02:49]} 6. Bd3 {[%clk 0:02:56]}  h6 {[%clk 0:02:47]} 7. Bh4 {[%clk 0:02:55]}  Nbd7 {[%clk 0:02:46]} 8. Ne2 {[%clk 0:02:55]}  e5 {[%clk 0:02:44]} 9. O-O {[%clk 0:02:51]}  c5 {[%clk 0:02:40]} 10. a4 {[%clk 0:02:45]}  d5 {[%clk 0:02:36]} 11. a5 {[%clk 0:02:40]}  cxd4 {[%clk 0:02:33]} 12. cxd4 {[%clk 0:02:39]}  exd4 {[%clk 0:02:33]} 13. Nxd4 {[%clk 0:02:38]}  Ne5 {[%clk 0:02:31]} 14. Be2 {[%clk 0:02:32]}  a6 {[%clk 0:02:27]} 15. Qb3 {[%clk 0:02:22]}  g5 {[%clk 0:02:04]} 16. Bg3 {[%clk 0:02:21]}  Ng6 {[%clk 0:01:55]} 17. Rfc1 {[%clk 0:02:10]}  Nd7 {[%clk 0:01:47]} 18. Nf5 {[%clk 0:01:58]}  Nc5 {[%clk 0:01:40]} 19. Rxc5 {[%clk 0:01:55]}  Bxf5 {[%clk 0:01:39]} 20. Rxd5 {[%clk 0:01:50]}  Qf6 {[%clk 0:01:37]} 21. Rd4 {[%clk 0:01:38]}  Qe7 {[%clk 0:01:25]} 22. Rb4 {[%clk 0:01:34]}  Be6 {[%clk 0:01:16]} 23. Bc4 {[%clk 0:01:32]}  Bxc4 {[%clk 0:01:03]} 24. Nxc4 {[%clk 0:01:33]}  Rac8 {[%clk 0:01:00]} 25. Bd6 {[%clk 0:01:30]}  Qf6 {[%clk 0:00:50]} 26. Bxf8 {[%clk 0:01:26]}  Bxf8 {[%clk 0:00:49]} 27. Rxb7 {[%clk 0:01:18]}  Qc6 {[%clk 0:00:48]} 28. h3 {[%clk 0:01:05]}  Qxc4 {[%clk 0:00:34]} 29. Qxc4 {[%clk 0:01:06]}  Rxc4 {[%clk 0:00:34]} 30. Rb6 {[%clk 0:01:06]}  Rb4 {[%clk 0:00:21]} 31. Rxa6 {[%clk 0:01:05]}  Rxb2 {[%clk 0:00:21]} 32. Ra8 {[%clk 0:01:00]}  Kg7 {[%clk 0:00:20]} 33. a6 {[%clk 0:01:00]}  Bc5 {[%clk 0:00:20]} 34. a7 {[%clk 0:00:57]}  Bxa7 {[%clk 0:00:19]} 35. R8xa7 {[%clk 0:00:58]}  Ne5 {[%clk 0:00:19]} 36. Rd1 {[%clk 0:00:52]}  Rb5 {[%clk 0:00:15]} 37. Ra6 {[%clk 0:00:47]}  Nc4 {[%clk 0:00:13]} 38. Rd7 {[%clk 0:00:44]}  Ne5 {[%clk 0:00:13]} 39. Rdd6 {[%clk 0:00:43]}  Ng6 {[%clk 0:00:12]} 40. Rxg6+ {[%clk 0:00:40]}  fxg6 {[%clk 0:00:12]} 41. Kh2 {[%clk 0:00:35]}  h5 {[%clk 0:00:12]} 42. Kg3 {[%clk 0:00:35]}  Kh6 {[%clk 0:00:12]} 43. Ra7 {[%clk 0:00:30]}  Rb3 {[%clk 0:00:10]} 44. Kf3 {[%clk 0:00:30]}  Rb4 {[%clk 0:00:10]} 45. Ra3 {[%clk 0:00:27]}  g4+ {[%clk 0:00:09]} 46. hxg4 {[%clk 0:00:24]}  Rxg4 {[%clk 0:00:10]} 47. e4 {[%clk 0:00:22]}  Rg5 {[%clk 0:00:10]} 48. Re3 {[%clk 0:00:19]}  Re5 {[%clk 0:00:10]} 49. Kf4 {[%clk 0:00:19]}  Re6 {[%clk 0:00:10]} 50. e5 {[%clk 0:00:20]}  Kg7 {[%clk 0:00:10]} 51. Ke4 {[%clk 0:00:20]}  Ra6 {[%clk 0:00:08]} 52. Rd3 {[%clk 0:00:18]}  Kf7 {[%clk 0:00:06]} 53. Kf4 {[%clk 0:00:13]}  Ra4+ {[%clk 0:00:06]} 54. Kg3 {[%clk 0:00:08]}  Re4 {[%clk 0:00:05]} 55. Re3 {[%clk 0:00:08]}  Rd4 {[%clk 0:00:05]} 56. f4 {[%clk 0:00:07]}  Ke7 {[%clk 0:00:05]} 57. Kf3 {[%clk 0:00:08]}  Ke6 {[%clk 0:00:06]} 58. Re1 {[%clk 0:00:08]}  Rd3+ {[%clk 0:00:06]} 59. Re3 {[%clk 0:00:08]}  Rd4 {[%clk 0:00:06]} 60. Ra3 {[%clk 0:00:08]}  Kf5 {[%clk 0:00:05]} 61. Ra6 {[%clk 0:00:05]}  Rxf4+ {[%clk 0:00:05]} 62. Kg3 {[%clk 0:00:06]}  Re4 {[%clk 0:00:06]} 63. Rf6+ {[%clk 0:00:06]}  Kg5 {[%clk 0:00:06]} 64. Re6 {[%clk 0:00:05]}  Kf5 {[%clk 0:00:06]} 65. Rf6+ {[%clk 0:00:06]}  Kg5 {[%clk 0:00:06]} 66. Re6 {[%clk 0:00:05]}  Re3+ {[%clk 0:00:07]} 67. Kf2 {[%clk 0:00:05]}  Rb3 {[%clk 0:00:08]} 68. Re8 {[%clk 0:00:05]}  Rb2+ {[%clk 0:00:08]} 69. Kf3 {[%clk 0:00:05]}  Rb3+ {[%clk 0:00:09]} 70. Ke4 {[%clk 0:00:06]}  Rb4+ {[%clk 0:00:10]} 71. Kd5 {[%clk 0:00:06]}  Rb2 {[%clk 0:00:11]} 72. e6 {[%clk 0:00:06]}  Rd2+ {[%clk 0:00:11]} 73. Ke4 {[%clk 0:00:06]}  Rxg2 {[%clk 0:00:12]} 74. e7 {[%clk 0:00:07]}  Re2+ {[%clk 0:00:13]} 75. Kf3 {[%clk 0:00:07]}  Re6 {[%clk 0:00:13]} 76. Kg3 {[%clk 0:00:06]}  Kf6 {[%clk 0:00:13]} 77. Ra8 {[%clk 0:00:02]}  Rxe7 {[%clk 0:00:13]} 78. Ra7 {[%clk 0:00:03]}  Re6 {[%clk 0:00:14]} 79. Ra8 {[%clk 0:00:03]}  Re5 {[%clk 0:00:14]} 80. Ra6+ {[%clk 0:00:04]}  Kg5 {[%clk 0:00:15]} 81. Ra8 {[%clk 0:00:04]}  Rf5 {[%clk 0:00:16]} 82. Kh3 {[%clk 0:00:05]}  Rf3+ {[%clk 0:00:16]} 83. Kg2 {[%clk 0:00:05]}  Kg4 {[%clk 0:00:16]} 84. Ra4+ {[%clk 0:00:05]}  Rf4 {[%clk 0:00:16]} 85. Ra6 {[%clk 0:00:06]}  g5 {[%clk 0:00:17]} 86. Ra5 {[%clk 0:00:06]}  h4 {[%clk 0:00:18]} 87. Ra8 {[%clk 0:00:06]}  h3+ {[%clk 0:00:18]} 88. Kg1 {[%clk 0:00:06]}  Kg3 {[%clk 0:00:18]} 89. Ra3+ {[%clk 0:00:06]}  Rf3 {[%clk 0:00:19]} 90. Ra1 {[%clk 0:00:06]}  g4 {[%clk 0:00:19]} 91. Kh1 {[%clk 0:00:06]}  h2 {[%clk 0:00:18]} 92. Ra3 {[%clk 0:00:04]}  Kf2 {[%clk 0:00:16]} 93. Ra2+ {[%clk 0:00:03]}  Ke3 {[%clk 0:00:16]} 94. Rxh2 {[%clk 0:00:02]}  Rg3 {[%clk 0:00:14]} 95. Ra2 {[%clk 0:00:02]}  Kf4 {[%clk 0:00:13]} 96. Ra4+ {[%clk 0:00:02]}  Kg5 {[%clk 0:00:13]} 97. Kh2 {[%clk 0:00:02]}  Kh4 {[%clk 0:00:13]} 98. Ra8 {[%clk 0:00:02]}  Rh3+ {[%clk 0:00:13]} 99. Kg2 {[%clk 0:00:02]}  Rc3 {[%clk 0:00:13]} 100. Rh8+ {[%clk 0:00:02]}  Kg5 {[%clk 0:00:14]} 101. Rg8+ {[%clk 0:00:03]}  Kf4 {[%clk 0:00:14]} 102. Rf8+ {[%clk 0:00:03]}  Ke5 {[%clk 0:00:15]} 103. Re8+ {[%clk 0:00:04]}  Kd6 {[%clk 0:00:15]} 104. Rg8 {[%clk 0:00:04]}  Rc4 {[%clk 0:00:15]} 105. Kg3 {[%clk 0:00:04]}  Rc1 {[%clk 0:00:16]} 106. Rxg4 {[%clk 0:00:05]}  Rc2 {[%clk 0:00:17]} 107. Kh4 {[%clk 0:00:05]}  Rh2+ {[%clk 0:00:16]} 108. Kg3 {[%clk 0:00:05]}  Rd2 {[%clk 0:00:17]} 109. Rf4 {[%clk 0:00:06]}  Rd3+ {[%clk 0:00:18]} 110. Rf3 {[%clk 0:00:06]}  Rxf3+ {[%clk 0:00:17]} 111. Kxf3 {[%clk 0:00:06]} 1/2-1/2


[Site "https://www.chess.com"]